bitfinex-derivatives/quotes_BTCF0:USTF0_20251209
["timestamp","ask_amount","ask_price","bid_price","bid_amount"]
[1765281942101,0.0582196,90502.0,90501.0,0.00216578]
[1765281942609,0.0582196,90502.0,90501.0,0.00116578]
[1765281942808,0.0582196,90502.0,90501.0,0.00216578]
[1765281944907,0.0582196,90502.0,90501.0,0.02979578]
[1765281947411,0.0582196,90502.0,90501.0,0.02879578]
[1765281947711,0.0582196,90502.0,90501.0,0.02979578]
[1765281947912,0.0582196,90502.0,90501.0,0.05977578]
[1765281948311,0.0582196,90502.0,90501.0,0.05877578]
[1765281948511,0.11784841,90502.0,90501.0,0.05977578]
[1765281948807,0.0582196,90502.0,90501.0,0.05977578]
[1765281950603,0.0582196,90502.0,90501.0,0.05877578]
[1765281950804,0.0582196,90502.0,90501.0,0.05977578]
[1765281951517,0.0582196,90502.0,90501.0,0.05877578]
[1765281951714,0.0582196,90502.0,90501.0,0.05977578]
[1765281952216,0.11784561,90502.0,90501.0,0.05977578]
[1765281953409,0.0582196,90502.0,90501.0,0.05977578]
[1765281957220,0.0582196,90502.0,90501.0,0.05877578]
[1765281957515,0.0582196,90502.0,90501.0,0.05977578]
[1765281957721,0.0582196,90502.0,90501.0,0.00216578]
[1765281958822,0.0582196,90502.0,90501.0,0.00116578]
[1765281959419,0.0582196,90502.0,90501.0,0.00016578]
[1765281959624,0.0582196,90502.0,90501.0,0.00116578]
[1765281959924,0.13772098,90502.0,90501.0,0.00116578]
[1765281960123,0.13772098,90502.0,90501.0,0.00016578]
[1765281960419,0.28724535,90511.0,90480.0,0.0688323]
[1765281960420,0.05539,90481.0,90480.0,0.0688323]
[1765281960620,0.05539,90481.0,90480.0,0.0860223]
[1765281962425,0.05539,90481.0,90480.0,0.0910223]
[1765281962628,0.02746,90481.0,90480.0,0.0910223]
[1765281962926,0.02746,90481.0,90480.0,0.0920223]
[1765281963526,0.02746,90481.0,90480.0,0.0910223]
[1765281963724,0.02746,90481.0,90480.0,0.0890223]
[1765281963928,0.02746,90481.0,90480.0,0.0910223]
[1765281964619,0.05539,90481.0,90480.0,0.0890223]
[1765281964830,0.02746,90481.0,90480.0,0.0910223]
[1765281965025,0.05539,90481.0,90480.0,0.0910223]
[1765281966932,0.05539,90481.0,90480.0,0.0890223]
[1765281967234,0.05539,90481.0,90480.0,0.0910223]
[1765281967822,0.05539,90481.0,90480.0,0.0890223]
[1765281968022,0.05539,90481.0,90480.0,0.0910223]
[1765281969933,0.0110512,90489.0,90488.0,0.0272612]
[1765281970137,0.0665312,90489.0,90488.0,0.0851312]
[1765281970734,0.0665312,90489.0,90488.0,0.0689212]
[1765281970934,0.0665312,90489.0,90488.0,0.0699212]
[1765281971238,0.0665312,90489.0,90488.0,0.05887]
[1765281971540,0.0665312,90489.0,90488.0,0.06087]
[1765281978643,0.0665312,90489.0,90488.0,0.003]
[1765281979040,0.0665312,90489.0,90488.0,0.002]
[1765281979240,0.0665312,90489.0,90488.0,0.001]
[1765281979452,0.0665327,90477.0,90476.0,0.05787]
[1765281980359,0.0665327,90477.0,90476.0,0.02975]
[1765281980563,0.0665327,90477.0,90476.0,0.05787]
[1765281980862,0.0665327,90477.0,90476.0,0.05887]
[1765281982060,0.0665327,90477.0,90476.0,0.05987]
[1765281982458,0.0665327,90477.0,90476.0,0.05887]
[1765281983164,0.0665327,90477.0,90476.0,0.06087]
[1765281983869,0.0665327,90477.0,90476.0,0.05887]
[1765281984067,0.0665327,90477.0,90476.0,0.05987]
[1765281985558,0.0665327,90477.0,90476.0,0.07709]
[1765281985963,0.0665327,90477.0,90476.0,0.07809]
[1765281986369,0.0665327,90477.0,90476.0,0.07909]
[1765281986564,0.0665327,90477.0,90476.0,0.06387]
[1765281987266,0.0665327,90477.0,90476.0,0.06287]
[1765281988168,0.0665327,90477.0,90476.0,0.06087]
[1765281988653,0.0842433,90472.0,90471.0,0.05884578]
[1765281990160,0.0842433,90472.0,90471.0,0.00016578]
[1765281990468,0.0842433,90472.0,90471.0,0.00116578]
[1765281990968,0.0842433,90472.0,90471.0,0.00316578]
[1765281995358,0.0842433,90472.0,90471.0,0.06184578]
[1765281996774,0.0674033,90472.0,90471.0,0.06184578]
[1765281999872,0.0674033,90472.0,90471.0,0.07289918]
[1765282001369,0.05635,90479.0,90478.0,0.05868]
[1765282002880,0.0674025,90479.0,90478.0,0.05868]
[1765282004684,0.0674025,90479.0,90478.0,0.06368]
[1765282005182,0.0674025,90479.0,90478.0,0.06068]
[1765282005379,0.0674025,90479.0,90478.0,0.06368]
[1765282009788,0.0674025,90479.0,90478.0,0.06068]
[1765282009980,0.0674025,90479.0,90478.0,0.06368]
[1765282010375,0.0674025,90479.0,90478.0,0.06068]
[1765282010684,0.0674025,90479.0,90478.0,0.06368]
[1765282010886,0.0674025,90479.0,90478.0,0.005]
[1765282011385,0.0674025,90479.0,90478.0,0.003]
[1765282011685,0.0674025,90479.0,90478.0,0.005]
[1765282012385,0.0674025,90479.0,90478.0,0.004]
[1765282012686,0.0674025,90479.0,90478.0,0.005]
[1765282013186,0.0674025,90479.0,90478.0,0.001]
[1765282013379,0.0674025,90479.0,90478.0,0.003]
[1765282013773,0.0674025,90479.0,90478.0,0.001]
[1765282013975,0.0854733,90472.0,90471.0,0.05597578]
[1765282014385,0.14512234,90472.0,90471.0,0.05597578]
[1765282015577,0.14512234,90472.0,90471.0,0.05697578]
[1765282015977,0.14512234,90472.0,90471.0,0.05897578]
[1765282017087,0.14512234,90472.0,90471.0,0.05697578]
[1765282017286,0.14512234,90472.0,90471.0,0.05897578]
[1765282017887,0.14512234,90472.0,90471.0,0.03184578]
[1765282018386,0.14512234,90472.0,90471.0,0.00316578]
[1765282018985,0.14512234,90472.0,90471.0,0.03278578]
[1765282019692,0.14512234,90472.0,90471.0,0.00316578]
[1765282019873,0.067724,90466.0,90465.0,0.05785541]
[1765282020988,0.067724,90466.0,90465.0,0.05985541]
[1765282022890,0.067724,90466.0,90465.0,0.06185541]
[1765282026389,0.067724,90466.0,90465.0,0.00510541]
[1765282026595,0.067724,90466.0,90465.0,0.06194541]
[1765282027590,0.067724,90466.0,90465.0,0.00510541]
[1765282027797,0.0680151,90457.0,90456.0,0.00016578]
[1765282027996,0.12766975,90457.0,90456.0,0.00016578]
[1765282028318,0.02934,90438.0,90437.0,0.05693818]
[1765282028801,0.05696,90438.0,90437.0,0.05693818]
[1765282029597,0.05696,90438.0,90437.0,0.05993818]
[1765282030090,0.05696,90438.0,90437.0,0.05793818]
[1765282030292,0.05696,90438.0,90437.0,0.05993818]
[1765282031194,0.08037699,90438.0,90437.0,0.05993818]
[1765282031793,0.08037699,90438.0,90437.0,0.05893818]
[1765282032289,0.08037699,90438.0,90437.0,0.05693818]
[1765282032489,0.08037699,90438.0,90437.0,0.05893818]
[1765282033091,0.08037699,90438.0,90437.0,0.05793818]
[1765282033598,0.08037699,90438.0,90437.0,0.05893818]
[1765282033991,0.08035203,90438.0,90437.0,0.05893818]
[1765282034191,0.05696,90438.0,90437.0,0.05893818]
[1765282035604,0.05696,90438.0,90437.0,0.05793818]
[1765282035899,0.05696,90438.0,90437.0,0.05893818]
[1765282036597,0.05696,90438.0,90437.0,0.05793818]
[1765282036802,0.05696,90438.0,90437.0,0.05893818]
[1765282039809,0.08033721,90438.0,90437.0,0.00209818]
[1765282039995,0.08033721,90438.0,90437.0,0.00109818]
[1765282041094,0.0110586,90429.0,90428.0,0.00016578]
[1765282041297,0.0680186,90429.0,90428.0,0.00016578]
[1765282041498,0.0680199,90418.0,90417.0,0.05684]
[1765282042300,0.06814216,90418.0,90417.0,0.05684]
[1765282042693,0.06814216,90418.0,90417.0,0.06084]
[1765282043106,0.06814216,90418.0,90417.0,0.06384]
[1765282044004,0.06814216,90418.0,90417.0,0.007]
[1765282045103,0.06814216,90418.0,90417.0,0.004]
[1765282045302,0.05731,90416.0,90415.0,0.02993602]
[1765282045811,0.05731,90416.0,90415.0,0.00110602]
[1765282046200,0.05731,90416.0,90415.0,0.02993602]
[1765282046407,0.05731,90416.0,90415.0,0.05856602]
[1765282048609,0.05731,90416.0,90415.0,0.05956602]
[1765282049712,0.07528,90416.0,90415.0,0.05956602]
[1765282051607,0.0986369,90416.0,90415.0,0.05956602]
[1765282052201,0.0806669,90416.0,90415.0,0.05956602]
[1765282052610,0.0806669,90416.0,90415.0,0.05856602]
[1765282052815,0.0806669,90416.0,90415.0,0.05956602]
[1765282053010,0.06472,90416.0,90415.0,0.05956602]
[1765282053202,0.08807831,90416.0,90415.0,0.05956602]
[1765282053405,0.08807831,90416.0,90415.0,0.06156602]
[1765282054913,0.08066831,90416.0,90415.0,0.06056602]
[1765282057212,0.05731,90416.0,90415.0,0.06056602]
[1765282057417,0.08070938,90416.0,90415.0,0.06056602]
[1765282057823,0.09176958,90416.0,90415.0,0.06056602]
[1765282058123,0.09176958,90416.0,90415.0,0.05856602]
[1765282058422,0.09176958,90416.0,90415.0,0.06056602]
[1765282060326,0.09176958,90416.0,90415.0,0.05956602]
[1765282060514,0.09176958,90416.0,90415.0,0.06056602]
[1765282061224,0.0683702,90416.0,90415.0,0.05956602]
[1765282061420,0.0683702,90416.0,90415.0,0.06056602]
[1765282063719,0.0683702,90416.0,90415.0,0.05956602]
[1765282063925,0.0683702,90416.0,90415.0,0.06056602]
[1765282064124,0.0683702,90416.0,90415.0,0.05956602]
[1765282064423,0.0683702,90416.0,90415.0,0.06056602]
[1765282065720,0.0683702,90416.0,90415.0,0.05956602]
[1765282066018,0.0683702,90416.0,90415.0,0.06056602]
[1765282070524,0.0683702,90416.0,90415.0,0.05856602]
[1765282070814,0.0683702,90416.0,90415.0,0.06056602]
[1765282071127,0.0683702,90416.0,90415.0,0.05956602]
[1765282073418,0.0683702,90416.0,90415.0,0.00210602]
[1765282073615,0.12799229,90416.0,90415.0,0.00210602]
[1765282073821,0.12799229,90416.0,90408.0,0.00016588]
[1765282073822,0.067521,90409.0,90408.0,0.00016588]
[1765282074031,0.0675225,90397.0,90396.0,0.09640721]
[1765282074229,0.06760225,90397.0,90396.0,0.05679]
[1765282074429,0.0675232,90391.0,90390.0,0.05789632]
[1765282076120,0.0675232,90391.0,90390.0,0.00110632]
[1765282076321,0.0675232,90391.0,90390.0,0.02919632]
[1765282076621,0.0675232,90391.0,90390.0,0.00110632]
[1765282076820,0.0675232,90391.0,90390.0,0.01110632]
[1765282078430,0.0675232,90391.0,90390.0,0.05989632]
[1765282079832,0.05646,90391.0,90390.0,0.05989632]
[1765282080643,0.05653975,90397.0,90396.0,0.07334]
[1765282081334,0.05653975,90397.0,90396.0,0.05679]
[1765282081737,0.06760225,90397.0,90396.0,0.05679]
[1765282081936,7.975e-05,90397.0,90396.0,0.05679]
[1765282083143,0.00016588,90400.0,90399.0,0.05679]
[1765282084136,0.07637765,90416.0,90396.0,0.004]
[1765282084137,0.0687902,90416.0,90415.0,0.0802203]
[1765282086231,0.05773,90416.0,90415.0,0.0812203]
[1765282086434,0.16297446,90425.0,90424.0,0.0673192]
[1765282086627,0.00016588,90425.0,90424.0,0.0673192]
[1765282087630,0.02914588,90425.0,90424.0,0.0673192]
[1765282088230,0.02914588,90425.0,90424.0,0.0693192]
[1765282088539,0.00016588,90425.0,90424.0,0.0693192]
[1765282089143,0.02914588,90425.0,90424.0,0.0713192]
[1765282089343,0.05789588,90425.0,90424.0,0.0713192]
[1765282089743,0.05789588,90425.0,90424.0,0.0703192]
[1765282090435,0.05789588,90425.0,90424.0,0.0693192]
[1765282090944,0.05789588,90425.0,90424.0,0.0713192]
[1765282091241,0.05789588,90425.0,90424.0,0.0693192]
[1765282091541,0.00016588,90425.0,90424.0,0.0713192]
[1765282091933,0.05883571,90440.0,90439.0,0.0673173]
[1765282092248,0.00110571,90440.0,90439.0,0.0673173]
[1765282093432,0.00210571,90440.0,90439.0,0.0673173]
[1765282093836,0.00310571,90440.0,90439.0,0.0673173]
[1765282094438,0.00210571,90440.0,90439.0,0.0673173]
[1765282094643,0.00210571,90440.0,90439.0,0.0683173]
[1765282095346,0.00110571,90440.0,90439.0,0.0683173]
[1765282102050,0.00110571,90440.0,90439.0,0.4291173]
[1765282108750,0.05675571,90440.0,90439.0,0.4291173]
[1765282109350,0.08509291,90440.0,90439.0,0.41806]
[1765282109749,0.08509291,90440.0,90439.0,0.38954]
[1765282109954,0.08509291,90440.0,90439.0,0.3618]
[1765282110354,0.08509291,90440.0,90439.0,0.39109]
[1765282110554,0.08509291,90440.0,90439.0,0.41825]
[1765282111149,0.08509291,90440.0,90439.0,0.001]
[1765282111658,0.08509291,90440.0,90430.0,0.00016588]
[1765282111659,0.0667083,90431.0,90430.0,0.05661588]
[1765282112849,0.0667083,90431.0,90430.0,0.05861588]
[1765282113247,0.0667083,90431.0,90430.0,0.00216588]
[1765282113454,0.0667083,90431.0,90430.0,0.05861588]
[1765282114054,0.0667083,90431.0,90430.0,0.06061588]
[1765282125073,0.0667083,90431.0,90430.0,0.00416588]
[1765282126678,0.0667083,90431.0,90430.0,0.03345588]
[1765282128479,0.0667083,90431.0,90430.0,0.06061588]
[1765282140084,0.12645595,90431.0,90430.0,0.06061588]
[1765282140290,0.0667083,90431.0,90430.0,0.06061588]
[1765282152098,0.0667083,90431.0,90430.0,0.03297588]
[1765282152304,0.0667083,90431.0,90430.0,0.06236588]
[1765282154407,0.0667083,90431.0,90430.0,0.00416588]
[1765282155007,0.0667083,90431.0,90430.0,0.06236588]
[1765282173321,0.0667083,90431.0,90430.0,8e-08]
[1765282173516,0.0687502,90416.0,90415.0,0.05744]
[1765282176609,0.09416525,90425.0,90424.0,0.05744]
[1765282176610,0.06891498,90425.0,90424.0,0.05744]
[1765282176813,0.01122498,90425.0,90424.0,0.05744]
[1765282178221,0.01122498,90425.0,90424.0,0.05844]
[1765282181414,0.00016588,90425.0,90424.0,0.05844]
[1765282182525,0.36190571,90440.0,90439.0,0.05744]
[1765282182526,0.00110571,90440.0,90439.0,0.05744]
[1765282183821,0.00510571,90440.0,90439.0,0.05744]
[1765282184814,0.00410571,90440.0,90439.0,0.05944]
[1765282185122,0.00110571,90440.0,90439.0,0.06144]
[1765282185516,0.0110566,90446.0,90445.0,0.05744]
[1765282185726,0.0110566,90446.0,90445.0,0.41824]
[1765282186021,0.1628576,90449.0,90448.0,0.0857662]
[1765282186211,0.06891208,90449.0,90448.0,0.0857662]
[1765282187126,0.06891208,90449.0,90448.0,0.4465662]
[1765282187329,0.06891208,90449.0,90448.0,0.4475662]
[1765282187528,0.06891208,90449.0,90448.0,0.4485662]
[1765282190014,0.06891208,90449.0,90448.0,0.4475662]
[1765282190814,0.06891208,90449.0,90448.0,0.4465662]
[1765282191031,0.06891208,90449.0,90448.0,0.4485662]
[1765282192631,0.05785588,90449.0,90448.0,0.4485662]
[1765282194344,0.00016588,90449.0,90448.0,0.4485662]
[1765282196134,0.05479,90458.0,90457.0,0.0110551]
[1765282196336,0.05479,90458.0,90457.0,0.0693851]
[1765282197232,0.05579,90458.0,90457.0,0.05833]
[1765282197428,0.0658451,90457.0,90456.0,0.38983]
[1765282197633,0.0658451,90457.0,90456.0,0.41913]
[1765282198536,0.05479,90457.0,90456.0,0.41913]
[1765282198739,0.002,90458.0,90457.0,0.0693851]
[1765282199130,0.0658447,90461.0,90460.0,0.0693848]
[1765282199541,0.0658447,90461.0,90460.0,0.0861548]
[1765282200335,0.0688447,90461.0,90460.0,0.0861548]
[1765282200639,0.003,90461.0,90460.0,0.0861548]
[1765282201544,0.00016588,90467.0,90466.0,0.069384]
[1765282202130,0.09394552,90476.0,90475.0,0.0693829]
[1765282202333,0.02771,90476.0,90475.0,0.0693829]
[1765282203034,0.05479,90476.0,90475.0,0.0693829]
[1765282203535,0.05779,90476.0,90475.0,0.0693829]
[1765282203744,0.06279,90476.0,90475.0,0.0693829]
[1765282205943,0.06279,90476.0,90475.0,0.05833]
[1765282207432,0.07537,90476.0,90475.0,0.05833]
[1765282210538,0.0686439,90467.0,90466.0,0.02934588]
[1765282210839,0.0686439,90467.0,90466.0,0.00016588]
[1765282210840,0.4294439,90467.0,90466.0,0.00016588]
[1765282211827,0.4334439,90467.0,90466.0,0.00016588]
[1765282212035,0.0809554,90455.0,90454.0,0.56939]
[1765282212440,0.0809554,90455.0,90454.0,0.54202]
[1765282212745,0.0809554,90455.0,90445.0,0.05655]
[1765282212746,0.0686465,90446.0,90445.0,0.05655]
[1765282215548,0.0686465,90446.0,90445.0,0.05855]
[1765282215844,0.0686465,90446.0,90445.0,0.05955]
[1765282221439,0.0686465,90446.0,90445.0,0.003]
[1765282221638,0.0686476,90437.0,90436.0,0.00016588]
[1765282221935,0.4294476,90437.0,90436.0,0.02934588]
[1765282222245,0.4294476,90437.0,90436.0,0.05671588]
[1765282223351,0.4304476,90437.0,90436.0,0.05671588]
[1765282224446,0.4294476,90437.0,90436.0,0.05671588]
[1765282224638,0.4324476,90437.0,90436.0,0.05671588]
[1765282225036,0.4314476,90437.0,90436.0,0.05671588]
[1765282225436,0.4334476,90437.0,90436.0,0.05671588]
[1765282225649,0.4314476,90437.0,90436.0,0.05671588]
[1765282225850,0.4334476,90437.0,90436.0,0.05671588]
[1765282226350,0.4334476,90437.0,90436.0,0.02934588]
[1765282226649,0.4334476,90437.0,90436.0,0.00016588]
[1765282227148,0.4334476,90437.0,90436.0,0.02882588]
[1765282227754,0.4314476,90437.0,90436.0,0.02882588]
[1765282227941,0.4334476,90437.0,90436.0,0.02882588]
[1765282228454,0.4304476,90437.0,90436.0,0.02882588]
[1765282228651,0.4344476,90437.0,90436.0,0.02882588]
[1765282229450,0.4334476,90437.0,90436.0,0.02882588]
[1765282230655,0.4324476,90437.0,90436.0,0.02882588]
[1765282231043,0.4314476,90437.0,90436.0,0.02882588]
[1765282231353,0.4334476,90437.0,90436.0,0.02882588]
[1765282231852,0.4324476,90437.0,90436.0,0.02882588]
[1765282232056,0.4334476,90437.0,90436.0,0.02882588]
[1765282232356,0.4334476,90437.0,90436.0,0.00016588]
[1765282232649,0.4324476,90437.0,90436.0,0.00016588]
[1765282232855,0.4344476,90437.0,90436.0,0.00016588]
[1765282233053,0.0736476,90437.0,90436.0,0.00016588]
[1765282233552,0.0706476,90437.0,90436.0,0.00016588]
[1765282233753,0.0736476,90437.0,90436.0,0.00016588]
[1765282234146,0.0706476,90437.0,90436.0,0.02882588]
[1765282234459,0.0716476,90437.0,90436.0,0.02882588]
[1765282235149,0.0696476,90437.0,90436.0,0.02882588]
[1765282235340,0.0726476,90437.0,90436.0,0.02882588]
[1765282237944,0.0726476,90437.0,90436.0,0.05697588]
[1765282238345,0.0716476,90437.0,90436.0,0.05697588]
[1765282239251,0.0706476,90437.0,90436.0,0.05697588]
[1765282239459,0.0426076,90437.0,90436.0,0.07688358]
[1765282239752,0.003,90437.0,90436.0,0.07688358]
[1765282240656,0.05976,90437.0,90436.0,0.07688358]
[1765282240850,0.05976,90437.0,90436.0,0.05797588]
[1765282241255,0.05976,90437.0,90436.0,0.05697588]
[1765282241554,0.05976,90437.0,90436.0,0.05897588]
[1765282242246,0.05876,90437.0,90436.0,0.05897588]
[1765282242850,0.05876,90437.0,90436.0,0.05697588]
[1765282243559,0.05976,90437.0,90436.0,0.05697588]
[1765282244460,0.05876,90437.0,90436.0,0.05697588]
[1765282244654,0.05976,90437.0,90436.0,0.05697588]
[1765282246554,0.06076,90437.0,90436.0,0.05697588]
[1765282246749,0.05976,90437.0,90436.0,0.05697588]
[1765282246949,0.06076,90437.0,90436.0,0.05697588]
[1765282247153,0.06076,90437.0,90436.0,0.07372588]
[1765282247447,0.06176,90437.0,90436.0,0.07372588]
[1765282247852,0.06076,90437.0,90436.0,0.07372588]
[1765282248057,0.03212,90437.0,90436.0,0.07372588]
[1765282248258,0.06176,90437.0,90436.0,0.05697588]
[1765282248760,0.06076,90437.0,90436.0,0.05797588]
[1765282248953,0.05876,90437.0,90436.0,0.05797588]
[1765282249154,0.05976,90437.0,90436.0,0.05797588]
[1765282249659,0.05876,90437.0,90436.0,0.05797588]
[1765282249862,0.05876,90437.0,90436.0,0.07472588]
[1765282250062,0.05876,90437.0,90436.0,0.07372588]
[1765282250462,0.0401774,90439.0,90438.0,0.05681]
[1765282250864,0.0698174,90439.0,90438.0,0.05681]
[1765282251456,0.0110574,90439.0,90438.0,0.05681]
[1765282251856,0.0698169,90443.0,90442.0,0.0678669]
[1765282252956,0.0708169,90443.0,90442.0,0.0678669]
[1765282253466,0.0698169,90443.0,90442.0,0.0678669]
[1765282257871,0.0698169,90443.0,90442.0,0.05681]
[1765282259272,0.0708169,90443.0,90442.0,0.05681]
[1765282259660,0.0708169,90443.0,90442.0,0.02866]
[1765282259865,0.0837172,90440.0,90439.0,0.02889]
[1765282260272,0.0837172,90440.0,90439.0,0.05799]
[1765282260673,0.0661676,90437.0,90436.0,0.05815588]
[1765282260872,0.0661676,90437.0,90436.0,0.00016588]
[1765282261874,0.0661676,90437.0,90436.0,0.00116588]
[1765282262573,0.0661676,90437.0,90436.0,0.00016588]
[1765282262782,0.0701676,90437.0,90436.0,0.00016588]
[1765282263179,0.0701676,90437.0,90436.0,0.05815588]
[1765282264181,0.0691676,90437.0,90436.0,0.05815588]
[1765282264380,0.0701676,90437.0,90436.0,0.05815588]
[1765282264595,0.0671676,90437.0,90436.0,0.05815588]
[1765282264792,0.0701676,90437.0,90436.0,0.05815588]
[1765282264987,0.0691676,90437.0,90436.0,0.05815588]
[1765282265488,0.0671676,90437.0,90436.0,0.05815588]
[1765282267591,0.0681676,90437.0,90436.0,0.05815588]
[1765282268094,0.0691676,90437.0,90436.0,0.05815588]
[1765282271090,0.0681676,90437.0,90436.0,0.05815588]
[1765282272103,0.0691676,90437.0,90436.0,0.05815588]
[1765282273601,0.0671676,90437.0,90436.0,0.05815588]
[1765282273801,0.0691676,90437.0,90436.0,0.05815588]
[1765282274794,0.0681676,90437.0,90436.0,0.05815588]
[1765282275302,0.0661676,90437.0,90436.0,0.05815588]
[1765282275502,0.0681676,90437.0,90436.0,0.05815588]
[1765282277403,0.0691676,90437.0,90436.0,0.05815588]
[1765282277703,0.0701676,90437.0,90436.0,0.05815588]
[1765282278298,0.0701676,90437.0,90436.0,0.00016588]
[1765282278598,0.12663411,90437.0,90436.0,0.00016588]
[1765282278802,0.12863411,90437.0,90436.0,0.00016588]
[1765282279005,0.12963411,90437.0,90436.0,0.00016588]
[1765282280102,0.0701676,90437.0,90436.0,0.00016588]
[1765282280306,0.0691676,90437.0,90436.0,0.00016588]
[1765282280607,0.0701676,90437.0,90436.0,0.00016588]
[1765282282605,0.0701676,90437.0,90436.0,0.05746588]
[1765282284109,0.0691676,90437.0,90436.0,0.05746588]
[1765282284310,0.0681676,90437.0,90436.0,0.05746588]
[1765282284510,0.0691676,90437.0,90436.0,0.05746588]
[1765282285211,0.0661676,90437.0,90436.0,0.05746588]
[1765282285414,0.0701676,90437.0,90436.0,0.05746588]
[1765282286817,0.0691676,90437.0,90436.0,0.05746588]
[1765282287114,0.0701676,90437.0,90436.0,0.05746588]
[1765282288415,0.0661676,90437.0,90436.0,0.05746588]
[1765282288616,0.0701676,90437.0,90436.0,0.05746588]
[1765282290209,0.12989889,90437.0,90436.0,0.05746588]
[1765282290613,0.0701676,90437.0,90436.0,0.05746588]
[1765282290816,0.0691676,90437.0,90436.0,0.05746588]
[1765282291014,0.0671676,90437.0,90436.0,0.05746588]
[1765282291222,0.0701676,90437.0,90436.0,0.05746588]
[1765282292316,0.12990049,90437.0,90436.0,0.05746588]
[1765282292619,0.0701676,90437.0,90436.0,0.05746588]
[1765282292815,0.0701676,90437.0,90436.0,0.07516588]
[1765282293020,0.004,90437.0,90436.0,0.07516588]
[1765282293323,0.03229,90437.0,90436.0,0.07516588]
[1765282293506,0.03029,90437.0,90436.0,0.07516588]
[1765282293711,0.0612,90437.0,90436.0,0.07516588]
[1765282294114,0.0602,90437.0,90436.0,0.07516588]
[1765282294314,0.0582,90437.0,90436.0,0.07616588]
[1765282295213,0.0582,90437.0,90436.0,0.05846588]
[1765282295821,0.0582,90437.0,90436.0,0.07641588]
[1765282296019,0.0582,90437.0,90436.0,0.05846588]
[1765282296620,0.0582,90437.0,90436.0,0.05746588]
[1765282297024,0.0592,90437.0,90436.0,0.05746588]
[1765282297325,0.0592,90437.0,90436.0,0.06852358]
[1765282298921,0.001,90437.0,90436.0,0.08596358]
[1765282299224,0.05973289,90454.0,90453.0,0.0683556]
[1765282299424,0.04051138,90455.0,90454.0,0.0573]
[1765282299614,0.00016588,90455.0,90454.0,0.0573]
[1765282300918,0.00116588,90455.0,90454.0,0.0573]
[1765282301312,0.0403446,90462.0,90461.0,0.0110547]
[1765282301509,0.0692546,90462.0,90461.0,0.0683547]
[1765282303024,0.0712546,90462.0,90461.0,0.0683547]
[1765282303420,0.0722546,90462.0,90461.0,0.0683547]
[1765282307127,0.0612,90462.0,90461.0,0.0683547]
[1765282319437,0.0701349,90459.0,90458.0,0.3608]
[1765282319642,0.0701362,90450.0,90449.0,0.067916]
[1765282319940,0.07679,90448.0,90443.0,0.0110568]
[1765282320137,0.07679,90448.0,90447.0,0.39025]
[1765282320339,0.05908,90448.0,90447.0,0.41766]
[1765282320943,0.06582,90448.0,90447.0,0.41766]
[1765282321148,0.05908,90437.0,90436.0,0.05702588]
[1765282321342,0.05908,90437.0,90436.0,0.06808358]
[1765282321547,0.05908,90437.0,90436.0,0.08482358]
[1765282321850,0.13454222,90446.0,90445.0,0.0679166]
[1765282322041,0.0592458,90446.0,90445.0,0.0679166]
[1765282322235,0.0001658,90446.0,90445.0,0.0679166]
[1765282322546,0.0001658,90446.0,90445.0,0.05686]
[1765282322547,0.0703023,90446.0,90445.0,0.05686]
[1765282323145,0.0703023,90446.0,90445.0,0.05786]
[1765282323340,0.0703023,90446.0,90445.0,0.001]
[1765282323553,0.0703023,90446.0,90445.0,0.003]
[1765282324448,0.0703023,90446.0,90445.0,0.06032]
[1765282324634,0.0703023,90446.0,90445.0,0.05932]
[1765282325144,0.0713023,90446.0,90445.0,0.05732]
[1765282325646,0.0733023,90446.0,90445.0,0.05732]
[1765282326446,0.0723023,90446.0,90445.0,0.05732]
[1765282327851,0.0713023,90446.0,90445.0,0.05732]
[1765282328447,0.0703023,90446.0,90445.0,0.05732]
[1765282329752,0.0713023,90446.0,90445.0,0.05732]
[1765282331950,0.0723023,90446.0,90445.0,0.05732]
[1765282332452,0.0713023,90446.0,90445.0,0.05732]
[1765282332639,0.0723023,90446.0,90445.0,0.05732]
[1765282334953,0.0713023,90446.0,90445.0,0.05732]
[1765282335245,0.0703023,90446.0,90445.0,0.05732]
[1765282335651,0.0713023,90446.0,90445.0,0.05732]
[1765282338657,0.0703023,90446.0,90445.0,0.05732]
[1765282338954,0.0713023,90446.0,90445.0,0.05732]
[1765282339146,0.0723023,90446.0,90445.0,0.05732]
[1765282340751,0.0723023,90446.0,90445.0,0.02923]
[1765282340956,0.0666575,90439.0,90438.0,0.0683774]
[1765282342452,0.0676575,90439.0,90438.0,0.0683774]
[1765282343058,0.05595,90438.0,90437.0,0.3608]
[1765282343452,0.0120575,90439.0,90436.0,0.00016588]
[1765282343453,0.0670076,90437.0,90436.0,0.00016588]
[1765282343657,0.06701,90417.0,90416.0,0.41688]
[1765282344960,0.06701,90417.0,90416.0,0.05608]
[1765282345158,0.06701,90417.0,90416.0,0.06008]
[1765282345367,0.06801,90417.0,90416.0,0.06008]
[1765282345550,0.06801,90417.0,90416.0,0.05608]
[1765282345747,0.06901,90417.0,90416.0,0.05608]
[1765282346757,0.06801,90417.0,90416.0,0.05608]
[1765282347861,0.06701,90417.0,90416.0,0.05608]
[1765282348759,0.05595,90417.0,90416.0,0.05608]
[1765282348959,0.05595,90417.0,90416.0,0.0671402]
[1765282350458,0.02769,90417.0,90416.0,0.0849602]
[1765282350659,0.24395572,90426.0,90425.0,0.05608]
[1765282350958,0.06717478,90426.0,90425.0,0.05608]
[1765282352262,0.06817478,90426.0,90425.0,0.05608]
[1765282353459,0.06917478,90426.0,90425.0,0.05608]
[1765282363176,0.06817478,90426.0,90425.0,0.05608]
[1765282363481,0.06917478,90426.0,90425.0,0.05608]
[1765282364681,0.07017478,90426.0,90425.0,0.05608]
[1765282366079,0.06917478,90426.0,90425.0,0.05608]
[1765282366768,0.08566478,90426.0,90425.0,0.05608]
[1765282367172,0.08566478,90426.0,90425.0,0.02807]
[1765282370084,0.08566478,90426.0,90425.0,0.05608]
[1765282372578,0.08566478,90426.0,90425.0,0.0671391]
[1765282376890,0.06917478,90426.0,90425.0,0.0671391]
[1765282380877,0.06917478,90426.0,90425.0,0.05608]
[1765282386104,0.00216588,90426.0,90425.0,0.05608]
[1765282386387,0.06189834,90426.0,90425.0,0.05608]
[1765282386784,0.09144834,90426.0,90425.0,0.05608]
[1765282387396,0.03171588,90426.0,90425.0,0.05608]
[1765282387698,0.03071588,90426.0,90425.0,0.05608]
[1765282387897,0.03071588,90426.0,90425.0,0.05708]
[1765282388394,0.05897588,90426.0,90425.0,0.05708]
[1765282388899,0.05797588,90426.0,90425.0,0.05808]
[1765282389987,0.05797588,90426.0,90425.0,0.05708]
[1765282390693,0.11770834,90426.0,90425.0,0.05708]
[1765282390896,0.11770834,90426.0,90425.0,0.05608]